bitfinex-derivatives/quotes_SOLF0:USTF0_20250731
["timestamp","ask_amount","ask_price","bid_price","bid_amount"]
[1753986423290,3.11,176.7,176.66,3.24]
[1753986423893,3.11,176.7,176.67,3.24]
[1753986424090,4.04310025,176.72,176.67,3.24]
[1753986424294,3.11,176.71,176.67,3.24]
[1753986424489,3.11,176.71,176.68,5.6599]
[1753986424685,4.04310025,176.76,176.68,4.04310025]
[1753986424898,3.11,176.74,176.71,3.24]
[1753986425096,3.11,176.74,176.73,3.24]
[1753986425285,108.86,176.76,176.73,3.24]
[1753986425590,111.97,176.76,176.74,3.24]
[1753986425791,3.11,176.75,176.74,3.24]
[1753986426193,3.11,176.74,176.72,7.28310025]
[1753986426585,8.7681,176.75,176.72,7.28310025]
[1753986426799,3.11,176.74,176.72,7.28310025]
[1753986427192,5.6581,176.75,176.72,7.28310025]
[1753986427193,3.11,176.73,176.72,7.28310025]
[1753986427686,3.11,176.72,176.71,3.24]
[1753986427887,108.86,176.76,176.72,3.24]
[1753986428090,3.11,176.73,176.72,3.24]
[1753986428697,111.93,176.75,176.74,3.24]
[1753986429393,117.5879,176.75,176.74,3.24]
[1753986429599,108.82,176.75,176.74,3.24]
[1753986429796,108.82,176.75,176.74,7.28310025]
[1753986429996,3.11,176.78,176.74,4.04310025]
[1753986430194,111.93,176.78,176.77,3.24]
[1753986430395,108.82,176.78,176.77,3.24]
[1753986432400,3.11,176.77,176.75,3.24]
[1753986432606,3.11,176.77,176.73,3.24]
[1753986432797,5.6578,176.76,176.73,3.24]
[1753986432998,3.11,176.75,176.73,3.24]
[1753986433400,3.11,176.77,176.73,3.24]
[1753986433707,3.11,176.76,176.73,3.24]
[1753986433908,111.93,176.78,176.74,9.70120025]
[1753986434206,3.11,176.77,176.76,7.28310025]
[1753986434400,108.82,176.78,176.76,7.28310025]
[1753986434607,111.93,176.78,176.77,3.24]
[1753986434907,108.82,176.78,176.76,4.04310025]
[1753986435107,3.11,176.77,176.74,12.94110025]
[1753986435308,114.4772,176.78,176.75,3.24]
[1753986435506,3.11,176.76,176.75,3.24]
[1753986436100,3.11,176.76,176.62,9.44627132]
[1753986436101,7.15310025,176.77,176.7,7.28310025]
[1753986436302,3.11,176.76,176.7,7.28310025]
[1753986436603,3.11,176.76,176.73,3.24]
[1753986436904,108.74,176.77,176.73,3.24]
[1753986437109,114.3973,176.77,176.73,8.8983]
[1753986437304,108.74,176.77,176.75,3.24]
[1753986437503,108.74,176.77,176.76,3.24]
[1753986438309,114.3973,176.77,176.76,3.24]
[1753986438507,117.5073,176.77,176.76,3.24]
[1753986438906,5.6577,176.76,176.73,3.24]
[1753986439112,3.11,176.76,176.74,3.24]
[1753986439713,5.6579,176.75,176.74,3.24]
[1753986439908,111.85,176.77,176.73,3.24]
[1753986440410,111.85,176.77,176.72,4.04310025]
[1753986440614,3.11,176.76,176.75,3.24]
[1753986441104,8.7676,176.76,176.75,3.24]
[1753986441309,3.11,176.75,176.74,3.24]
[1753986441509,111.85,176.77,176.75,3.24]
[1753986441716,117.5075,176.77,176.75,3.24]
[1753986441910,111.85,176.77,176.73,3.24]
[1753986442110,3.11,176.76,176.73,3.24]
[1753986442305,3.11,176.76,176.73,5.6584]
[1753986442611,114.3975,176.77,176.73,3.24]
[1753986442811,117.5075,176.77,176.74,5.6581]
[1753986443010,117.5075,176.77,176.75,3.24]
[1753986444421,108.74,176.77,176.76,3.24]
[1753986444720,108.74,176.77,176.76,7.28310025]
[1753986445616,5.6569,176.79,176.76,12.94070025]
[1753986445920,3.11,176.81,176.77,3.24]
[1753986446120,5.6563,176.8,176.78,9.69990025]
[1753986446323,5.6563,176.8,176.79,3.24]
[1753986446519,8.7663,176.8,176.79,3.24]
[1753986446921,3.11,176.78,176.77,3.24]
[1753986447516,8.7669,176.79,176.77,3.24]
[1753986447716,3.11,176.78,176.77,3.24]
[1753986448913,3.13,176.77,176.76,3.01]
[1753986449128,3.13,176.77,176.74,4.04310025]
[1753986449320,3.13,176.76,176.74,9.70110025]
[1753986449620,3.13,176.76,176.75,3.01]
[1753986450321,3.13,176.76,176.72,3.01]
[1753986450522,3.13,176.75,176.72,3.01]
[1753986450716,3.13,176.74,176.72,3.01]
[1753986450916,3.13,176.74,176.73,3.01]
[1753986452426,108.58,176.76,176.73,3.01]
[1753986452630,108.58,176.76,176.73,4.04310025]
[1753986452925,108.58,176.76,176.75,3.01]
[1753986453322,111.71,176.76,176.75,3.01]
[1753986453729,117.3676,176.76,176.75,3.01]
[1753986453927,3.13,176.75,176.73,3.01]
[1753986454525,3.13,176.74,176.73,3.01]
[1753986454831,3.13,176.75,176.74,3.01]
[1753986455426,108.58,176.76,176.74,3.01]
[1753986455629,108.58,176.76,176.75,3.01]
[1753986455830,117.3676,176.76,176.75,3.01]
[1753986456134,117.3676,176.76,176.72,5.6586]
[1753986456135,114.2376,176.76,176.73,3.01]
[1753986456435,3.13,176.75,176.74,3.01]
[1753986456733,114.2376,176.76,176.74,3.01]
[1753986457036,3.13,176.81,176.74,3.01]
[1753986457332,7.17213095,176.8,176.77,3.01]
[1753986457532,117.3066,176.8,176.77,3.01]
[1753986457832,111.65,176.8,176.78,3.01]
[1753986458231,5.6569,176.79,176.78,3.01]
[1753986458430,111.65,176.8,176.79,3.01]
[1753986458627,115.69177917,176.8,176.79,3.01]
[1753986459132,111.65,176.8,176.79,3.01]
[1753986459332,3.13,176.8,176.79,3.01]
[1753986459926,8.7863,176.8,176.77,7.05310025]
[1753986460129,3.13,176.79,176.78,3.01]
[1753986460831,3.13,176.79,176.76,3.01]
[1753986461032,108.5,176.81,176.76,3.01]
[1753986461233,3.13,176.78,176.76,3.01]
[1753986461432,3.13,176.8,176.76,3.01]
[1753986461732,3.13,176.8,176.75,4.04310025]
[1753986461733,3.13,176.78,176.77,3.01]
[1753986462136,3.13,176.8,176.75,4.04310025]
[1753986462335,3.13,176.78,176.74,3.01]
[1753986462523,111.59,176.77,176.76,3.01]
[1753986463139,108.46,176.77,176.76,3.01]
[1753986463829,3.13,176.83,176.76,3.01]
[1753986464035,3.13,176.81,176.77,4.04310025]
[1753986464234,111.57,176.81,176.79,3.01]
[1753986464429,3.13,176.8,176.79,3.01]
[1753986465125,3.13,176.79,176.77,7.05310025]
[1753986465325,3.13,176.78,176.77,3.01]
[1753986465525,3.13,176.78,176.75,4.04310025]
[1753986465725,3.13,176.8,176.75,7.05310025]
[1753986465930,3.13,176.79,176.77,3.01]
[1753986466232,111.57,176.81,176.77,7.05310025]
[1753986466433,3.13,176.83,176.8,3.01]
[1753986466633,111.53,176.83,176.8,3.01]
[1753986467034,117.1856,176.83,176.8,5.6561]
[1753986467237,111.53,176.83,176.82,3.01]
[1753986467537,108.4,176.83,176.82,3.01]
[1753986467737,108.4,176.83,176.82,8.6657]
[1753986468327,111.53,176.83,176.82,8.6657]
[1753986469742,111.53,176.83,176.82,3.01]
[1753986470434,3.13,176.86,176.82,3.01]
[1753986470640,111.51,176.85,176.82,3.01]
[1753986470836,111.51,176.85,176.81,4.04310025]
[1753986470837,111.51,176.85,176.83,3.01]
[1753986471140,3.13,176.84,176.83,8.6652]
[1753986473739,3.13,176.84,176.83,3.01]
[1753986473939,8.7851,176.84,176.83,3.01]
[1753986474233,3.13,176.84,176.83,3.01]
[1753986476637,3.13,176.84,176.83,8.6654]
[1753986477940,108.38,176.85,176.76,48.04310025]
[1753986477941,3.13,176.83,176.82,3.01]
[1753986479140,3.13,176.83,176.82,8.6657]
[1753986479437,3.13,176.83,176.82,3.01]
[1753986480738,3.16,176.85,176.82,12.70860025]
[1753986480931,108.22,176.84,176.83,3.0]
[1753986481734,111.38,176.84,176.83,3.0]
[1753986482645,108.22,176.84,176.83,3.0]
[1753986482837,3.16,176.83,176.76,44.0]
[1753986483038,4.04310025,176.83,176.77,3.0]
[1753986483245,108.22,176.84,176.79,3.0]
[1753986483542,3.16,176.81,176.8,5.6563]
[1753986483742,111.36,176.81,176.8,3.0]
[1753986484138,111.36,176.81,176.8,8.6563]
[1753986484550,380.34,176.87,176.8,7.04310025]
[1753986484743,121.03193458,176.86,176.83,3.0]
[1753986484939,3.16,176.85,176.84,3.0]
[1753986486644,3.16,176.85,176.84,8.6551]
[1753986486839,3.16,176.85,176.84,3.0]
[1753986488341,3.16,176.85,176.84,8.6551]
[1753986488740,3.16,176.85,176.84,8.655]
[1753986490949,111.34,176.86,176.85,3.0]
[1753986491652,108.18,176.86,176.85,3.0]
[1753986491846,111.34,176.86,176.85,3.0]
[1753986492051,111.34,176.86,176.85,8.6548]
[1753986493248,4.67829458,176.95,176.86,3.0]
[1753986493444,4.04310025,176.96,176.85,4.04310025]
[1753986493445,7.19579374,176.94,176.9,3.0]
[1753986493650,111.24,176.93,176.91,5.6528]
[1753986493842,3.16,176.93,176.92,3.0]
[1753986494154,3.16,176.92,176.9,3.0]
[1753986494347,108.08,176.91,176.81,11.3119]
[1753986494546,108.08,176.91,176.88,4.04310025]
[1753986494748,111.24,176.91,176.9,3.0]
[1753986495347,108.08,176.91,176.88,9.69680025]
[1753986495548,3.16,176.9,176.89,3.0]
[1753986496452,3.16,176.9,176.89,8.6535]
[1753986496951,108.08,176.91,176.89,5.6535]
[1753986497158,111.24,176.91,176.9,3.0]
[1753986497356,3.16,176.9,176.89,3.0]
[1753986497555,108.04,176.91,176.88,8.6536]
[1753986497753,3.16,176.9,176.89,3.0]
[1753986498150,108.04,176.91,176.89,3.0]
[1753986498352,111.2,176.91,176.9,3.0]
[1753986498655,116.8528,176.91,176.9,3.0]
[1753986498861,3.16,176.9,176.86,3.0]
[1753986499150,3.16,176.9,176.81,44.0]
[1753986499151,3.16,176.88,176.87,3.0]
[1753986500357,3.16,176.88,176.86,5.6544]
[1753986500555,3.16,176.88,176.87,3.0]
[1753986500952,3.16,176.85,176.84,3.0]
[1753986502761,3.16,176.84,176.83,3.0]
[1753986502955,3.16,176.83,176.82,3.0]
[1753986503148,107.98,176.85,176.82,3.0]
[1753986503353,3.16,176.84,176.83,3.0]
[1753986504349,3.16,176.84,176.71,444.92437132]
[1753986504559,3.16,176.84,176.78,3.0]
[1753986504758,3.16,176.8,176.79,3.0]
[1753986505362,3.16,176.8,176.79,8.6567]
[1753986505560,3.16,176.8,176.79,3.0]
[1753986505757,5.656,176.82,176.78,5.6567]
[1753986505961,3.16,176.8,176.79,3.0]
[1753986506158,3.16,176.8,176.75,4.04310025]
[1753986506361,3.16,176.78,176.77,3.0]
[1753986506560,3.16,176.77,176.76,8.6576]
[1753986506767,3.16,176.8,176.74,3.0]
[1753986506967,8.8164,176.8,176.76,5.6574]
[1753986507265,8.8164,176.8,176.73,219.30724438]
[1753986507266,4.04310025,176.78,176.73,219.30724438]
[1753986507458,3.16,176.77,176.73,216.30724438]
[1753986507661,3.16,176.79,176.76,3.0]
[1753986507857,111.08,176.8,176.76,3.0]
[1753986508171,111.08,176.8,176.78,3.15]
[1753986508353,3.31,176.79,176.78,3.15]
[1753986508552,3.31,176.79,176.76,3.15]
[1753986508760,3.31,176.78,176.74,3.15]
[1753986508958,3.31,176.78,176.75,3.15]
[1753986509263,3.31,176.77,176.76,3.15]
[1753986510066,3.31,176.79,176.74,3.15]
[1753986510660,111.21,176.81,176.76,3.15]
[1753986510861,3.31,176.8,176.76,3.15]
[1753986511157,3.31,176.79,176.78,3.15]
[1753986512262,3.31,176.79,176.77,5.6571]
[1753986512464,3.31,176.8,176.75,3.15]
[1753986512658,3.31,176.79,176.75,3.15]
[1753986512867,3.31,176.77,176.73,3.15]
[1753986513163,111.94310025,176.76,176.72,3.15]
[1753986513366,3.31,176.74,176.7,3.15]
[1753986513568,3.31,176.74,176.71,3.15]
[1753986513774,3.31,176.72,176.71,3.15]
[1753986514071,3.31,176.74,176.72,3.15]
[1753986514266,3.31,176.74,176.73,3.15]
[1753986514764,111.19,176.76,176.73,5.6583]
[1753986514963,111.19,176.76,176.74,3.15]
[1753986515174,111.19,176.76,176.75,3.15]
[1753986515364,4.04310025,176.82,176.75,7.19310025]
[1753986515666,3.31,176.8,176.77,4.04310025]
[1753986515970,3.31,176.8,176.79,3.15]
[1753986516169,3.31,176.82,176.79,4.04310025]
[1753986516463,107.86,176.88,176.82,3.15]
[1753986516771,113.5139,176.88,176.84,8.805]
[1753986516968,3.31,176.85,176.84,8.805]
[1753986517462,3.31,176.85,176.84,3.15]
[1753986517662,3.31,176.88,176.82,3.15]
[1753986519062,3.31,176.87,176.82,3.15]
[1753986519270,3.31,176.87,176.76,4.04310025]
[1753986519271,3.31,176.92,176.86,3.15]
[1753986519571,3.31,176.9,176.87,3.15]
[1753986519770,3.31,176.89,176.88,3.15]
[1753986520166,111.17,176.91,176.89,3.15]
[1753986520362,3.31,176.9,176.87,8.804]
[1753986520567,3.31,176.89,176.88,3.15]
[1753986520876,3.31,176.89,176.88,8.8038]
[1753986521166,107.86,176.91,176.88,8.8038]
[1753986521167,107.86,176.91,176.9,3.15]
[1753986521368,107.82,176.92,176.89,3.15]
[1753986521563,3.31,176.91,176.87,3.15]
[1753986522166,3.31,176.9,176.87,3.15]
[1753986522378,3.31,176.91,176.87,3.15]
[1753986522965,3.31,176.91,176.86,4.04310025]
[1753986522966,3.31,176.9,176.89,3.15]
[1753986524073,111.13,176.92,176.89,3.15]
[1753986524266,3.31,176.91,176.89,3.15]
[1753986524576,107.82,176.92,176.89,3.15]
[1753986524873,107.82,176.92,176.79,34.55939781]
[1753986524874,3.31,176.94,176.93,3.15]
[1753986525073,3.31,176.93,176.92,3.15]
[1753986526073,111.09,176.95,176.93,3.15]
[1753986526266,111.09,176.95,176.94,3.15]
[1753986527367,107.78,176.95,176.91,9.69570025]
[1753986527571,107.78,176.95,176.93,3.15]
[1753986527768,111.09,176.95,176.93,3.15]
[1753986528675,3.31,176.97,176.95,3.15]
[1753986528874,107.72,176.97,176.94,3.15]
[1753986529074,111.03,176.97,176.95,3.15]
[1753986529269,111.03,176.97,176.93,4.04310025]
[1753986529468,3.31,176.96,176.95,3.15]
[1753986529670,5.6512,176.96,176.93,7.19310025]
[1753986529870,3.31,176.94,176.93,3.15]
[1753986530374,113.3711,176.97,176.93,3.15]
[1753986530375,3.31,176.96,176.93,3.15]
[1753986530575,3.31,176.95,176.94,3.15]
[1753986530770,107.72,176.97,176.92,8.8023]
[1753986530970,3.31,176.94,176.93,3.15]
[1753986532075,5.6512,176.96,176.93,3.15]
[1753986532276,3.31,176.95,176.93,3.15]
[1753986532475,3.31,176.95,176.94,3.15]
[1753986533281,3.31,176.96,176.93,3.15]
[1753986533472,107.72,176.97,176.93,3.15]
[1753986533673,3.31,176.95,176.92,4.04310025]
[1753986533881,3.31,176.95,176.92,7.19310025]
[1753986534069,107.72,176.97,176.92,7.19310025]
[1753986534274,3.31,176.93,176.92,7.19310025]
[1753986534777,3.31,176.93,176.92,3.15]
[1753986534975,3.31,176.92,176.91,3.15]
[1753986535175,3.31,176.92,176.91,8.8028]
[1753986535371,3.31,176.95,176.91,3.15]
[1753986535576,3.31,176.96,176.91,3.15]
[1753986535879,3.31,176.95,176.94,3.15]
[1753986537378,3.31,177.0,176.94,3.15]
[1753986537575,107.6,176.99,176.94,4.04310025]
[1753986537880,3.31,176.98,176.94,4.04310025]
[1753986538081,3.31,176.98,176.96,3.15]
[1753986538283,107.6,176.99,176.85,48.04310025]
[1753986538580,3.02,176.97,176.96,3.28]
[1753986538777,107.6,176.99,176.94,3.28]
[1753986539074,3.02,176.96,176.95,3.28]
[1753986539278,3.02,176.98,176.95,3.28]
[1753986539476,3.02,176.98,176.93,4.04310025]
[1753986539477,3.02,176.97,176.96,3.28]
[1753986539676,3.02,176.97,176.93,4.04310025]
[1753986539879,3.02,176.96,176.95,3.28]
[1753986540775,3.02,176.98,176.95,3.28]
[1753986540976,3.02,176.97,176.96,3.28]
[1753986544480,107.54,176.99,176.96,3.28]
[1753986544677,380.12,177.05,176.98,3.28]
[1753986544876,3.02,177.03,176.96,4.04310025]
[1753986545076,3.02,177.01,176.99,3.28]
[1753986545277,3.02,177.03,176.99,3.28]
[1753986545876,3.02,177.01,176.99,3.28]
[1753986546080,3.02,177.0,176.99,3.28]
[1753986546377,107.52,177.04,176.98,4.04310025]
[1753986546581,107.52,177.04,176.99,3.28]
[1753986546772,3.02,177.02,176.98,4.04310025]
[1753986547283,3.02,177.02,176.99,3.28]
[1753986547684,3.02,177.02,176.98,4.04310025]
[1753986547983,3.02,177.02,176.99,3.28]
[1753986548185,3.02,177.01,177.0,3.28]
[1753986548881,5.6496,177.01,176.99,3.28]
[1753986549085,3.02,177.0,176.99,3.28]
[1753986549583,3.02,177.01,177.0,3.28]
[1753986550382,3.02,177.02,177.01,3.28]
[1753986550985,113.1687,177.04,177.01,3.28]
[1753986551279,107.52,177.04,177.02,3.28]
[1753986551585,3.02,177.03,176.94,3.28]
[1753986551779,3.02,177.03,177.0,3.28]
[1753986551987,3.02,177.02,177.01,3.28]
[1753986553480,3.02,177.03,177.02,3.28]
[1753986554081,3.02,177.03,177.02,8.9293]
[1753986554281,3.02,177.03,177.02,3.28]
[1753986554482,107.52,177.04,177.02,8.9293]
[1753986554682,107.52,177.04,177.03,3.28]
[1753986554884,110.54,177.04,177.03,3.28]
[1753986555087,116.1887,177.04,177.03,3.28]
[1753986555792,113.1687,177.04,177.03,3.28]
[1753986556089,116.1887,177.04,177.03,3.28]
[1753986556489,113.1687,177.04,177.03,3.28]
[1753986556781,116.1887,177.04,177.03,3.28]
[1753986557088,3.02,177.03,177.0,3.28]
[1753986557388,3.02,177.03,177.0,8.9299]
[1753986557588,3.02,177.03,177.0,3.28]
[1753986558290,107.52,177.04,176.99,4.04310025]
[1753986558477,3.02,177.03,177.0,3.28]
[1753986558884,107.52,177.04,176.99,9.69310025]
[1753986558885,3.02,177.02,176.99,3.28]
[1753986559084,3.02,177.0,176.99,3.28]
[1753986559985,3.02,177.0,176.97,4.04310025]
[1753986559986,5.6504,176.99,176.97,3.28]
[1753986560289,3.02,176.98,176.97,3.28]
[1753986560483,110.38,176.98,176.97,3.28]
[1753986560785,107.36,176.98,176.97,3.28]
[1753986561085,107.36,176.98,176.97,8.9309]
[1753986561282,3.02,177.02,176.97,7.32310025]
[1753986561588,110.38,177.01,177.0,3.28]
[1753986561888,110.36,177.01,177.0,3.28]
[1753986562289,116.0096,177.01,177.0,3.28]
[1753986562887,120.08592541,177.01,177.0,3.28]
[1753986563591,120.0881292,177.01,177.0,3.28]
[1753986563990,8.6701,177.0,176.98,3.28]
[1753986564191,107.34,177.01,176.98,3.28]
[1753986564390,110.36,177.01,176.99,3.28]
[1753986564588,110.36,177.01,177.0,3.28]
[1753986564790,114.44002698,177.01,177.0,3.28]
[1753986565190,110.36,177.01,177.0,3.28]
[1753986565990,110.36,177.01,176.98,7.32310025]
[1753986566193,3.02,177.0,176.99,3.28]
[1753986566788,4.08099346,177.0,176.91,218.10395193]
[1753986566991,107.34,177.01,176.95,5.6514]
[1753986567190,3.02,176.98,176.93,3.28]
[1753986567388,3.02,176.96,176.93,3.28]
[1753986567589,107.3,176.97,176.93,3.28]
[1753986567797,3.02,176.94,176.93,3.28]
[1753986568088,3.02,176.93,176.91,3.28]
[1753986568392,3.02,176.93,176.92,3.11]
[1753986573191,3.02,176.93,176.89,4.04310025]
[1753986573391,3.02,176.93,176.9,3.11]
[1753986573591,3.31,176.92,176.91,3.11]
[1753986574296,3.31,176.93,176.91,3.11]
[1753986574998,3.31,176.93,176.92,3.11]
[1753986575593,8.9622,176.93,176.92,3.11]
[1753986575799,3.31,176.93,176.92,3.11]
[1753986578307,107.3,176.94,176.92,3.11]
[1753986578605,3.31,176.93,176.9,3.11]
[1753986578795,3.31,176.93,176.92,3.11]
[1753986579204,107.3,176.94,176.92,3.11]
[1753986579505,107.3,176.94,176.93,3.11]
[1753986579897,8.9605,176.99,176.93,3.11]
[1753986580095,107.22,176.98,176.97,3.11]
[1753986580403,107.22,176.98,176.97,8.7609]
[1753986580607,4.04310025,177.03,176.97,8.7609]
[1753986580608,3.31,177.02,176.97,3.11]
[1753986580808,107.2,177.0,176.99,3.11]
[1753986581309,107.2,177.0,176.99,8.7603]
[1753986582210,107.2,177.0,176.99,8.7603]
[1753986583205,8.9595,177.02,177.0,5.6499]
[1753986583400,8.9595,177.02,177.01,3.11]
[1753986584405,3.31,177.02,177.01,3.11]
[1753986584912,8.9593,177.02,177.01,3.11]
[1753986585413,3.31,177.02,177.01,3.11]
[1753986585710,110.49,177.03,177.02,3.11]
[1753986586504,110.49,177.03,177.0,3.11]
[1753986586505,107.18,177.03,177.0,3.11]
[1753986586813,3.31,177.02,177.0,3.11]
[1753986587010,3.31,177.02,176.97,12.80400025]
[1753986587309,380.12,177.05,176.98,3.11]
[1753986587515,3.31,177.03,176.98,3.11]
[1753986587711,3.31,177.01,176.98,3.11]
[1753986588011,110.45,177.01,177.0,3.11]
[1753986588609,116.0997,177.01,177.0,3.11]
[1753986589407,116.0997,177.01,176.99,4.04310025]
[1753986589602,3.31,177.0,176.99,7.15310025]
[1753986591211,3.31,176.99,176.9,77.29146147]
[1753986591410,380.12,177.05,176.95,3.11]
[1753986591411,3.31,176.97,176.95,3.11]
[1753986591610,3.31,176.96,176.95,3.11]
[1753986593018,107.1,176.98,176.95,3.11]
[1753986593213,107.1,176.98,176.96,4.04310025]
[1753986593415,107.1,176.98,176.97,3.11]
[1753986593915,3.31,176.99,176.97,3.11]
[1753986594116,3.31,176.99,176.98,4.04310025]
[1753986594316,3.31,176.99,176.98,7.15310025]
[1753986594510,112.7101,177.0,176.98,7.15310025]
[1753986594714,3.31,176.99,176.98,7.15310025]
[1753986595419,3.31,176.99,176.98,3.11]
[1753986595818,8.9603,176.99,176.98,3.11]
[1753986596717,3.31,176.97,176.96,3.11]
[1753986598710,3.31,176.97,176.95,4.04310025]
[1753986598711,110.35,176.97,176.91,3.25]
[1753986599019,3.17,176.95,176.94,3.25]
[1753986600219,5.6516,176.96,176.93,3.25]
[1753986600220,3.17,176.96,176.93,3.25]
[1753986600527,3.17,176.89,176.86,7.29310025]
[1753986600916,3.17,176.88,176.87,3.25]
[1753986601116,3.17,176.9,176.87,3.25]
[1753986601619,3.17,176.9,176.87,8.9041]
[1753986601829,107.0,176.91,176.89,3.25]
[1753986602124,3.17,176.9,176.89,3.25]
[1753986602322,107.0,176.91,176.89,3.25]
[1753986603724,110.17,176.91,176.89,3.25]
[1753986603924,110.17,176.91,176.9,3.25]
[1753986604425,107.0,176.91,176.9,7.29310025]
[1753986604824,3.17,176.92,176.9,4.04310025]
[1753986605024,3.17,176.94,176.91,3.25]
[1753986605220,106.98,176.97,176.93,7.29310025]
[1753986605419,106.98,176.97,176.85,221.13543169]
[1753986605420,3.17,176.94,176.91,7.29310025]
[1753986605730,3.17,176.93,176.92,3.25]
[1753986606226,111.02310025,176.97,176.85,265.13543169]
[1753986606227,3.17,176.96,176.9,3.25]
[1753986606725,5.6525,176.93,176.9,3.25]
[1753986606921,3.17,176.92,176.9,3.25]
[1753986607129,3.17,176.91,176.9,3.25]
[1753986610318,110.15,176.93,176.9,3.25]
[1753986610517,3.17,176.92,176.91,3.25]
[1753986611228,8.8226,176.92,176.91,3.25]
[1753986611428,3.17,176.92,176.91,3.25]
[1753986612529,8.8226,176.92,176.91,3.25]
[1753986612726,3.17,176.92,176.91,3.25]
[1753986613127,3.17,176.92,176.89,3.25]
[1753986613325,3.17,176.91,176.9,3.25]
[1753986613730,3.17,176.91,176.88,7.29310025]
[1753986614022,3.17,176.91,176.88,3.25]
[1753986614228,3.17,176.92,176.87,3.25]
[1753986614831,5.6532,176.9,176.87,3.25]
[1753986615029,3.17,176.9,176.87,3.25]
[1753986615230,3.17,176.9,176.87,5.6542]
[1753986615431,8.8227,176.92,176.89,3.25]
[1753986615622,3.17,176.91,176.89,3.25]
[1753986616926,110.07,176.93,176.91,3.25]
[1753986617127,110.07,176.93,176.92,3.25]
[1753986617331,7.21310025,176.99,176.92,12.94560025]
[1753986617629,16.97872374,177.02,176.92,12.94560025]
[1753986617630,3.17,176.95,176.94,3.25]
[1753986618327,3.17,177.01,176.95,3.25]
[1753986618635,3.17,177.0,176.98,7.29310025]
[1753986618934,3.17,176.99,176.94,7.29310025]
[1753986619225,5.6516,176.96,176.94,3.25]
[1753986619428,3.17,176.95,176.94,3.25]
[1753986619823,3.17,176.97,176.94,3.25]
[1753986620028,3.17,176.97,176.95,4.04310025]
[1753986620231,3.17,176.97,176.96,3.25]
[1753986621327,3.17,176.98,176.95,9.69460025]
[1753986621633,3.17,176.98,176.97,3.25]